{"text_format":"1","workbook":"xlsx","n_sheets":10,"sheets":["Лист1","1 Критерий 1 кв","Диаграмма 1 Критерия 1 кв","1 Критерий 1 полугодие","Диаграмма 1 Критерия 1 полугод","1 Критерий 9 мес","Диаграмма 1 Критерия 9 мес","1 Критерий за 2017 год","Диаграмма 1 Критерия за 2017 г","Диаграммы"],"not_rendered":{"charts":8,"images":0,"macros":1,"external_links":0,"defined_names":1,"comments":0,"pivot_tables":0},"unopened":[],"bounds":{"document_bytes":16777216,"sheet_cells":100000,"rows_first":2000,"rows_last":500,"rows_between":2000,"halvings":0,"cell_chars":16384,"cell_head_chars":4096},"cells_cut":0,"cells_raw":0,"read":"whole","date_system":"1900"}

{"sheet":"Лист1","index":0,"n_rows":29,"n_cols":2,"rows_kept":29,"cut":false,"hidden":false,"merged":[]}
[{"$f":"IFERROR(TRIM(RIGHT(SUBSTITUTE(INDEX(листы,ROW(A2)),\"]\",REPT(\" \",99)),100)),\"\")","v":"1 Критерий 1 кв"},"ЛИСТ:"]
[{"$f":"IFERROR(TRIM(RIGHT(SUBSTITUTE(INDEX(листы,ROW(A3)),\"]\",REPT(\" \",99)),100)),\"\")","v":"Диаграмма 1 Критерия 1 кв"},"Диаграмма 1 Критерия 1 кв"]
["1 Критерий 1 полугодие"]
["Диаграмма 1 Критерия 1 полугод"]
["1 Критерий 9 мес"]
["Диаграмма 1 Критерия 9 мес"]
["1 Критерий за 2017 год"]
["Диаграмма 1 Критерия за 2017 г"]
["Диаграммы"]
[""]
[""]
[""]
[""]
[""]
[""]
[""]
[{"$f":"IFERROR(TRIM(RIGHT(SUBSTITUTE(INDEX(листы,ROW(A18)),\"]\",REPT(\" \",99)),100)),\"\")","v":""}]
[""]
[""]
[""]
[""]
[""]
[""]
[""]
[""]
[""]
[""]
[""]
[""]

{"sheet":"1 Критерий 1 кв","index":1,"n_rows":36,"n_cols":2,"rows_kept":36,"cut":false,"hidden":false,"merged":[[0,0,0,1]]}
["1. Критерий к"]
["Заказчик","Показатель"]
["Заказчик 1",2]
["Заказчик 2",7]
["Заказчик 3",12]
["Заказчик 4",4]
["Заказчик 5",5]
["Заказчик 6",6]
["Заказчик 7",7]
["Заказчик 8",8]
["Заказчик 9",9]
["Заказчик 10",12]
["Заказчик 11",14]
["Заказчик 12",15]
["Заказчик 13",4]
["Заказчик 14",6]
["Заказчик 15",3]
["Заказчик 16",4]
["Заказчик 17",8]
["Заказчик 18",2]
["Заказчик 19",6]
["Заказчик 20",16]
["Заказчик 21",17]
["Заказчик 22",8]
["Заказчик 23",9]
["Заказчик 24",2]
["Заказчик 25",11]
["Заказчик 26",3]
["Заказчик 27",4]
["Заказчик 28",5]
["Заказчик 29",46]
["Заказчик 30",7]
["Заказчик 31",2]
["Заказчик 32",11]
["Заказчик 33",9]
["Заказчик 34",2]

{"sheet":"Диаграмма 1 Критерия 1 кв","index":2,"n_rows":0,"n_cols":0,"rows_kept":0,"cut":false,"hidden":false,"merged":[]}

{"sheet":"1 Критерий 1 полугодие","index":3,"n_rows":36,"n_cols":2,"rows_kept":36,"cut":false,"hidden":false,"merged":[[0,0,0,1]]}
["1. Критерий "]
["Заказчик","Показатель"]
["Заказчик 1",2]
["Заказчик 2",7]
["Заказчик 3",12]
["Заказчик 4",4]
["Заказчик 5",5]
["Заказчик 6",6]
["Заказчик 7",7]
["Заказчик 8",8]
["Заказчик 9",9]
["Заказчик 10",8]
["Заказчик 11",14]
["Заказчик 12",15]
["Заказчик 13",8]
["Заказчик 14",8]
["Заказчик 15",8]
["Заказчик 16",8]
["Заказчик 17",8]
["Заказчик 18",8]
["Заказчик 19",8]
["Заказчик 20",8]
["Заказчик 21",8]
["Заказчик 22",9]
["Заказчик 23",9]
["Заказчик 24",9]
["Заказчик 25",9]
["Заказчик 26",3]
["Заказчик 27",4]
["Заказчик 28",5]
["Заказчик 29",46]
["Заказчик 30",7]
["Заказчик 31",2]
["Заказчик 32",11]
["Заказчик 33",9]
["Заказчик 34",2]

{"sheet":"Диаграмма 1 Критерия 1 полугод","index":4,"n_rows":0,"n_cols":0,"rows_kept":0,"cut":false,"hidden":false,"merged":[]}

{"sheet":"1 Критерий 9 мес","index":5,"n_rows":36,"n_cols":2,"rows_kept":36,"cut":false,"hidden":false,"merged":[[0,0,0,1]]}
["1. Критерий "]
["Заказчик","Показатель"]
["Зказчик 1",2]
["Зказчик 2",7]
["Зказчик 3",12]
["Зказчик 4",4]
["Зказчик 5",5]
["Зказчик 6",6]
["Зказчик 7",7]
["Зказчик 8",8]
["Зказчик 9",9]
["Зказчик 10",8]
["Зказчик 11",14]
["Зказчик 12",15]
["Зказчик 13",8]
["Зказчик 14",8]
["Зказчик 15",12]
["Зказчик 16",12]
["Зказчик 17",12]
["Зказчик 18",1]
["Зказчик 19",21]
["Зказчик 20",11]
["Зказчик 21",21]
["Зказчик 22",1]
["Зказчик 23",1]
["Зказчик 24",1]
["Зказчик 25",12]
["Зказчик 26",3]
["Зказчик 27",4]
["Зказчик 28",5]
["Зказчик 29",46]
["Зказчик 30",7]
["Зказчик 31",2]
["Зказчик 32",11]
["Зказчик 33",9]
["Зказчик 34",2]

{"sheet":"Диаграмма 1 Критерия 9 мес","index":6,"n_rows":0,"n_cols":0,"rows_kept":0,"cut":false,"hidden":false,"merged":[]}

{"sheet":"1 Критерий за 2017 год","index":7,"n_rows":36,"n_cols":2,"rows_kept":36,"cut":false,"hidden":false,"merged":[[0,0,0,1]]}
["1. Критерий "]
["Заказчик","Показатель"]
["Заказчик 1",2]
["Заказчик 2",7]
["Заказчик 3",12]
["Заказчик 4",4]
["Заказчик 5",5]
["Заказчик 6",6]
["Заказчик 7",7]
["Заказчик 8",8]
["Заказчик 9",9]
["Заказчик 10",8]
["Заказчик 11",14]
["Заказчик 12",15]
["Заказчик 13",8]
["Заказчик 14",8]
["Заказчик 15",8]
["Заказчик 16",8]
["Заказчик 17",8]
["Заказчик 18",1]
["Заказчик 19",21]
["Заказчик 20",11]
["Заказчик 21",21]
["Заказчик 22",1]
["Заказчик 23",12]
["Заказчик 24",1]
["Заказчик 25",2]
["Заказчик 26",1]
["Заказчик 27",8]
["Заказчик 28",5]
["Заказчик 29",14]
["Заказчик 30",12]
["Заказчик 31",12]
["Заказчик 32",12]
["Заказчик 33",9]
["Заказчик 34",2]

{"sheet":"Диаграмма 1 Критерия за 2017 г","index":8,"n_rows":0,"n_cols":0,"rows_kept":0,"cut":false,"hidden":false,"merged":[]}

{"sheet":"Диаграммы","index":9,"n_rows":0,"n_cols":0,"rows_kept":0,"cut":false,"hidden":false,"merged":[]}